[Event "IIFL Wealth  4th Mumbai Junior U-13"]
[Site "Mumbai"]
[Date "2019.01.02"]
[Round "4"]
[White "Jain Hitansh"]
[Black "Sathi Akshaj Mayank"]
[Result "0-1"]
[ECO "A10"]
[WhiteElo "1008"]
[BlackElo "1194"]
[Annotator "NA"]
[PlyCount "22"]
[EventDate "2018.12.30"]
[EventType "swiss"]
[EventCountry "IND"]
[SourceTitle "playchess.com"]
[Source "ChessBase"]
[SourceQuality "1"]
[TimeControl "40/5400+30:1800+30"]

1. c4 d5 2. cxd5 Qxd5 3. Nc3 Qd8 4. Nf3 Nf6 5. d4 Bg4 6. Bf4 e6 7. e3 a6 8. Bc4 Be7 9. O-O O-O 10. Rc1 Bh5 11. Ne2 Nc6 0-1